bitfinex-derivatives/quotes_BNBF0:USTF0_20251203
["timestamp","ask_amount","ask_price","bid_price","bid_amount"]
[1764755886877,5.42650372,902.05,901.08,0.81997872]
[1764755886878,1.10084687,902.04,901.08,0.81997872]
[1764755887077,0.19301325,901.58,901.08,0.81997872]
[1764755887277,1.10084687,901.97,901.0,0.81997872]
[1764755887772,1.10084687,901.97,900.5,4.06753318]
[1764755887773,1.10084687,901.98,901.01,0.81997872]
[1764755888575,0.19302235,901.74,901.01,0.81997872]
[1764755889476,0.19302235,901.74,901.0,0.81997872]
[1764755891181,0.19302235,901.74,900.99,0.81997872]
[1764755892582,0.19302235,901.74,900.91,0.81997872]
[1764755892883,0.19302235,901.74,900.86,0.81997872]
[1764755893280,0.19302235,901.74,900.75,0.81997872]
[1764755895487,1.29386922,901.74,900.74,0.81997872]
[1764755899693,0.19302235,901.74,900.75,0.81997872]
[1764755901997,0.19302235,901.74,900.75,0.81997872]
[1764755902995,0.19302235,901.74,900.76,0.81997872]
[1764755903197,0.19302235,901.74,900.75,0.81997872]
[1764755903494,0.19302235,901.74,900.76,0.81997872]
[1764755904095,0.19302235,901.74,900.83,0.81997872]
[1764755905397,0.19302235,901.74,900.84,0.81997872]
[1764755906396,0.19302235,901.74,900.85,0.81997872]
[1764755906596,0.19302235,901.74,900.83,0.81997872]
[1764755907001,1.29386922,901.74,900.76,0.81997872]
[1764755908997,1.10084687,901.73,900.76,0.81997872]
[1764755910103,1.29386922,901.74,900.76,0.81997872]
[1764755911802,1.10084687,901.73,900.75,0.81997872]
[1764755914507,1.10084687,901.72,900.74,0.81997872]
[1764755914709,1.10084687,901.63,900.65,0.81997872]
[1764755917311,1.10084687,901.63,900.5,4.06753318]
[1764755917312,1.10084687,901.63,900.64,0.81997872]
[1764755918212,1.10084687,901.55,900.55,0.81997872]
[1764755919412,1.10084687,901.56,900.54,0.81997872]
[1764755920614,1.10084687,901.5,900.5,4.06753318]
[1764755921214,0.19302235,901.74,900.5,4.06753318]
[1764755921215,1.10084687,901.51,900.5,4.06753318]
[1764755923116,1.10084687,901.52,900.5,4.06753318]
[1764755924517,1.10084687,901.53,900.5,4.06753318]
[1764755925316,1.10084687,901.54,900.5,4.06753318]
[1764755926317,1.10084687,901.55,900.5,4.06753318]
[1764755927921,1.10084687,901.53,900.5,4.06753318]
[1764755929122,1.10084687,901.54,900.5,4.06753318]
[1764755929319,0.19302235,901.74,900.5,4.06753318]
[1764755929320,1.10084687,901.4,900.5,4.06753318]
[1764755929923,1.10084687,901.4,900.23,0.81997872]
[1764755930223,1.10084687,901.41,900.22,0.81997872]
[1764755930424,1.10084687,901.35,900.16,0.81997872]
[1764755931224,1.10084687,901.37,900.14,0.81997872]
[1764755932320,1.10084687,901.38,900.12,0.81997872]
[1764755933325,1.10084687,901.4,900.11,0.81997872]
[1764755934422,1.10084687,901.41,900.1,0.81997872]
[1764755935021,1.10084687,901.34,900.03,0.81997872]
[1764755935221,0.19302235,901.74,899.2,0.01083444]
[1764755935222,1.10084687,901.36,900.02,0.81997872]
[1764755936330,1.10084687,901.37,900.0,0.81997872]
[1764755937230,1.10084687,901.38,899.99,0.81997872]
[1764755938225,1.10084687,901.38,899.83,1.09037167]
[1764755938226,1.10084687,901.39,899.98,0.81997872]
[1764755938830,1.10084687,901.39,899.99,0.81997872]
[1764755939425,1.10084687,901.4,899.98,0.81997872]
[1764755941330,1.10084687,901.41,899.97,0.81997872]
[1764755942030,1.10084687,901.65,900.22,0.81997872]
[1764755942224,1.10084687,901.59,900.15,0.81997872]
[1764755942729,1.10084687,901.61,900.18,0.81997872]
[1764755943229,1.10084687,901.61,900.17,0.81997872]
[1764755943629,1.10084687,901.62,900.18,0.81997872]
[1764755943826,0.19302235,901.74,900.19,0.81997872]
[1764755943827,1.10084687,901.63,900.19,0.81997872]
[1764755944228,1.10084687,901.67,900.23,0.81997872]
[1764755945627,1.10084687,901.67,900.07,1.09037167]
[1764755945628,1.10084687,901.72,900.28,0.81997872]
[1764755945832,1.10084687,901.73,900.29,0.81997872]
[1764755946431,1.10084687,901.73,900.12,1.09037167]
[1764755946432,1.29386922,901.74,900.33,0.81997872]
[1764755946631,0.19302235,901.74,900.34,0.81997872]
[1764755947230,1.10084687,901.73,900.35,0.81997872]
[1764755948334,1.10084687,901.72,900.36,0.81997872]
[1764755948535,1.10084687,901.64,900.28,0.81997872]
[1764755948834,1.10084687,901.64,900.27,0.81997872]
[1764755949035,1.10084687,901.49,900.12,0.81997872]
[1764755949235,1.10084687,901.48,900.13,0.81997872]
[1764755949430,1.10084687,901.51,900.15,0.81997872]
[1764755949931,1.10084687,901.51,899.65,0.19308608]
[1764755949932,1.10084687,901.53,900.18,0.81997872]
[1764755950331,0.19302235,901.74,900.18,0.81997872]
[1764755950332,1.10084687,901.52,900.18,0.81997872]
[1764755951235,1.10084687,901.63,900.32,0.81997872]
[1764755952030,1.10084687,901.55,900.24,0.81997872]
[1764755952232,1.10084687,901.54,900.25,0.81997872]
[1764755953340,1.10084687,901.53,900.25,0.81997872]
[1764755954339,1.10084687,901.56,900.28,0.81997872]
[1764755954540,0.19302235,901.74,900.55,0.81997872]
[1764755954736,1.10084687,901.73,900.29,1.09037167]
[1764755954938,1.10084687,901.69,900.41,0.81999462]
[1764755955135,1.10084687,901.68,900.41,0.81999462]
[1764755955337,1.10084687,901.6,900.33,0.81999462]
[1764755956238,1.10084687,901.6,900.34,0.81999462]
[1764755956436,1.10084687,901.59,900.33,0.81999462]
[1764755957238,1.10084687,901.52,900.26,0.81999462]
[1764755958143,1.10084687,901.52,900.27,0.81999462]
[1764755960244,1.10084687,901.51,900.27,0.81999462]
[1764755961243,1.10084687,901.51,900.28,0.81999462]
[1764755962242,1.10084687,901.5,900.28,0.81999462]
[1764755963045,1.10084687,901.51,900.28,0.81999462]
[1764755963246,1.10084687,901.5,900.29,0.81999462]
[1764755964244,1.10084687,901.49,900.3,0.81999462]
[1764755965247,1.10084687,901.48,900.31,0.81999462]
[1764755966349,1.10084687,901.47,900.32,0.81999462]
[1764755967147,1.10084687,901.46,900.33,0.81999462]
[1764755967649,1.10084687,901.45,900.32,0.81999462]
[1764755967846,1.65127031,901.62,899.65,0.19308608]
[1764755967847,1.10084687,901.36,900.22,0.81999462]
[1764755968247,1.10084687,901.32,900.19,0.81999462]
[1764755968451,0.19302235,901.74,900.13,0.81999462]
[1764755968452,1.10084687,901.25,900.13,0.81999462]
[1764755969247,1.10084687,901.24,900.12,0.81999462]
[1764755971252,1.10084687,901.24,899.96,1.09037167]
[1764755971253,1.10084687,901.23,900.13,0.81999462]
[1764755972153,1.10084687,901.23,900.12,0.81999462]
[1764755972355,1.10084687,901.23,900.13,0.81999462]
[1764755973150,1.10084687,901.22,900.14,0.81999462]
[1764755974255,1.10084687,901.21,900.15,0.81999462]
[1764755974455,1.10084687,901.16,900.1,0.81999462]
[1764755974755,0.19302235,901.74,899.65,0.19308608]
[1764755974756,1.10084687,901.11,900.04,0.81999462]
[1764755974954,1.10084687,901.1,900.03,0.81999462]
[1764755976353,1.10084687,901.15,900.08,0.81999462]
[1764755984765,1.10084687,901.16,900.09,0.81999462]
[1764755985963,1.10084687,901.24,900.16,0.81999462]
[1764755986261,1.10084687,901.23,900.16,0.81999462]
[1764755988362,1.10084687,901.23,900.17,0.81999462]
[1764755993067,1.10084687,901.22,900.16,0.81999462]
[1764755993265,1.10084687,901.23,900.16,0.81999462]
[1764755993769,1.10084687,901.22,900.16,0.81999462]
[1764755994172,1.10084687,901.23,900.16,0.81999462]
[1764755995671,1.10084687,901.21,900.15,0.81999462]
[1764755998369,1.10084687,901.23,900.16,0.81999462]
[1764756000072,1.10084687,901.22,900.16,0.81999462]
[1764756001876,1.10084687,901.22,900.0,1.09037167]
[1764756001877,1.10084687,901.21,900.15,0.81999462]
[1764756002101,1.10084687,901.21,899.2,0.01083444]
[1764756002102,1.10084687,901.13,900.07,0.81999462]
[1764756002271,1.10084687,901.17,900.1,0.81999462]
[1764756002471,1.10084687,901.24,900.17,0.81999462]
[1764756002673,1.10084687,901.25,900.18,0.81999462]
[1764756002973,1.10084687,901.28,900.21,0.81999462]
[1764756003273,1.10084687,901.27,900.21,0.81999462]
[1764756003778,1.10084687,901.36,900.29,0.81999462]
[1764756004183,1.10084687,901.35,900.29,0.81999462]
[1764756004682,1.10084687,901.36,900.3,0.81999462]
[1764756005780,1.10084687,901.39,900.33,0.81999462]
[1764756005985,1.10084687,901.44,900.38,0.81999462]
[1764756006180,1.10084687,901.44,900.22,1.09037167]
[1764756006181,1.10084687,901.44,900.39,0.81999462]
[1764756006783,1.10084687,901.43,900.38,0.81999462]
[1764756006980,1.10084687,901.43,900.22,1.09037167]
[1764756006981,1.10084687,901.42,900.37,0.81999462]
[1764756007182,1.10084687,901.41,900.37,0.81999462]
[1764756008283,1.10084687,901.41,900.05,1.6355575]
[1764756008284,1.10084687,901.41,900.38,0.81999462]
[1764756008585,1.10084687,901.37,900.34,0.81999462]
[1764756008787,1.10084687,901.36,900.33,0.81999462]
[1764756009484,0.19302235,901.74,899.47,0.19321472]
[1764756009485,1.10084687,901.29,900.26,0.81999462]
[1764756010085,1.65127031,901.45,900.09,1.09037167]
[1764756010086,1.10084687,901.28,900.25,0.81999462]
[1764756010283,1.10084687,901.28,900.26,0.81999462]
[1764756011888,0.19302235,901.74,900.23,0.81999462]
[1764756011889,1.10084687,901.25,900.23,0.81999462]
[1764756012286,1.10084687,901.18,900.16,0.81999462]
[1764756013390,1.10084687,901.18,900.17,0.81999462]
[1764756014189,1.10084687,901.17,900.17,0.81999462]
[1764756015187,1.10084687,901.16,900.18,0.81999462]
[1764756017186,1.10084687,901.15,900.19,0.81999462]
[1764756018591,1.10084687,901.16,900.2,0.81999462]
[1764756018792,1.10084687,901.16,900.19,0.81999462]
[1764756018992,1.10084687,901.15,900.19,0.81999462]
[1764756020190,1.10084687,901.14,900.2,0.81999462]
[1764756023190,1.10084687,901.13,900.21,0.81999462]
[1764756024892,1.10084687,901.11,900.19,0.81999462]
[1764756025395,1.10084687,901.1,900.2,0.81999462]
[1764756026392,1.10084687,901.1,900.21,0.81999462]
[1764756027193,1.10084687,901.09,900.21,0.81999462]
[1764756033103,1.10084687,901.09,900.22,0.81999462]
[1764756033304,1.10084687,901.09,900.21,0.81999462]
[1764756034805,1.10084687,901.11,900.23,0.81999462]
[1764756035205,1.10084687,901.11,900.24,0.81999462]
[1764756040210,1.10084687,901.1,900.24,0.81999462]
[1764756040911,1.10084687,901.08,900.22,0.81999462]
[1764756041206,1.10084687,901.05,900.18,0.81999462]
[1764756041505,1.10084687,901.05,900.02,1.09037167]
[1764756041506,1.10084687,900.99,900.13,0.81999462]
[1764756042207,1.10084687,901.0,900.13,0.81999462]
[1764756043410,1.10084687,901.0,899.96,1.09037167]
[1764756043411,1.10084687,900.87,900.0,0.81999462]
[1764756044114,1.10084687,900.88,899.99,0.81999462]
[1764756045115,1.10084687,900.87,899.96,0.81999462]
[1764756045708,1.10084687,900.87,899.95,0.81999462]
[1764756046109,1.10084687,900.81,899.87,0.81999462]
[1764756046413,1.10084687,900.81,899.86,4.28423668]
[1764756046613,1.10084687,900.8,899.86,3.46424206]
[1764756046914,1.10084687,900.79,899.86,3.46424206]
[1764756047115,1.10084687,900.81,899.86,3.46424206]
[1764756048215,1.10084687,900.82,899.86,3.46424206]
[1764756048416,1.10084687,900.81,899.86,3.46424206]
[1764756049318,1.10084687,900.83,899.86,3.46424206]
[1764756050119,1.10084687,900.84,899.86,3.46424206]
[1764756051218,1.10084687,900.84,899.75,0.81999462]
[1764756051420,1.10084687,900.73,899.65,0.81999462]
[1764756052117,1.10084687,900.75,899.63,0.81999462]
[1764756053219,1.10084687,900.77,899.62,0.81999462]
[1764756054223,1.10084687,900.78,899.6,0.81999462]
[1764756055222,1.10084687,900.8,899.59,0.81999462]
[1764756056125,1.10084687,900.81,899.58,0.81999462]
[1764756057125,1.10084687,900.82,899.57,0.81999462]
[1764756058226,1.10084687,900.83,899.56,0.81999462]
[1764756059125,1.10084687,900.84,899.55,0.81999462]
[1764756059624,1.10084687,900.81,899.52,0.81999462]
[1764756060121,1.10084687,900.75,899.46,0.81999462]
[1764756061320,1.65127031,900.91,899.11,0.19328984]
[1764756061321,1.10084687,900.76,899.45,0.81999462]
[1764756061521,1.10084687,900.75,899.44,0.81999462]
[1764756061924,1.10084687,900.75,899.11,1.82884734]
[1764756061925,1.10084687,900.72,899.41,0.81999462]
[1764756062125,1.10084687,900.72,899.4,0.81999462]
[1764756062325,1.10084687,900.68,899.33,0.81999462]
[1764756063222,1.10084687,900.68,899.32,0.81999462]
[1764756063428,1.10084687,900.7,899.33,0.81999462]
[1764756063729,1.10084687,900.79,899.42,0.81999462]
[1764756064222,1.10084687,900.85,899.46,0.81999462]
[1764756064723,1.10084687,900.87,899.49,0.81999462]
[1764756065325,1.10084687,900.87,899.48,0.81999462]
[1764756065728,1.10084687,900.86,899.47,0.81999462]
[1764756066126,1.10084687,900.86,899.48,0.81999462]
[1764756066330,1.10084687,900.86,899.19,3.52690392]
[1764756066331,1.10084687,900.86,899.47,0.81999462]
[1764756067130,1.10084687,900.86,899.48,0.81999462]
[1764756069135,1.10084687,900.85,899.48,0.81999462]
[1764756069428,1.10084687,900.86,899.48,0.81999462]
[1764756069933,1.10084687,900.85,899.47,0.81999462]
[1764756071634,1.10084687,900.78,899.4,0.81999462]
[1764756072133,1.10084687,900.77,899.4,0.81999462]
[1764756072333,1.10084687,900.78,899.4,0.81999462]
[1764756073334,1.10084687,900.78,899.39,0.81999462]
[1764756074233,1.10084687,900.79,899.39,0.81999462]
[1764756074931,1.10084687,900.86,899.46,0.81999462]
[1764756078239,1.10084687,900.86,899.47,0.81999462]
[1764756079135,1.10084687,900.85,899.46,0.81999462]
[1764756080135,1.10084687,900.84,899.46,0.81999462]
[1764756082239,1.10084687,900.84,899.47,0.81999462]
[1764756083041,1.10084687,900.83,899.47,0.81999462]
[1764756083442,1.10084687,900.84,899.47,0.81999462]
[1764756083642,1.10084687,900.84,899.48,0.81999462]
[1764756084741,1.10084687,900.78,899.42,0.81999462]
[1764756085037,1.10084687,900.82,899.46,0.81999462]
[1764756085342,1.10084687,900.78,899.44,0.81999462]
[1764756086637,1.10084687,900.73,899.39,0.81999462]
[1764756087238,1.10084687,900.73,899.4,0.81999462]
[1764756087443,1.10084687,900.73,899.39,0.81999462]
[1764756088145,1.10084687,900.72,899.4,0.81999462]
[1764756088744,0.19332528,900.4,899.4,0.81999462]
[1764756090246,0.19332528,900.4,899.41,0.81999462]
[1764756091142,0.19332528,900.4,899.42,0.81999462]
[1764756091446,0.19332528,900.4,899.41,0.81999462]
[1764756092246,0.19332528,900.4,899.42,0.81999462]
[1764756093141,0.19332528,900.4,899.43,0.81999462]
[1764756094148,0.19332528,900.4,899.44,0.81999462]
[1764756095248,0.19332528,900.4,899.45,0.81999462]
[1764756096148,0.19332528,900.4,899.29,1.09037167]
[1764756096149,0.19332528,900.4,899.46,0.81999462]
[1764756096743,0.19332528,900.4,899.3,1.09037167]
[1764756096744,0.19332528,900.4,899.57,0.81999462]
[1764756097244,0.19332528,900.4,899.58,0.81999462]
[1764756098248,0.19332528,900.4,899.6,0.81999462]
[1764756098951,0.19332528,900.4,899.59,0.81999462]
[1764756099146,0.19332528,900.4,899.52,0.81999462]
[1764756100245,0.19332528,900.4,899.54,0.81999462]
[1764756100549,0.19332528,900.4,899.53,0.81999462]
[1764756101149,0.19332528,900.4,899.55,0.81999462]
[1764756101450,0.19332528,900.4,899.54,0.81999462]
[1764756102150,0.19332528,900.4,899.56,0.81999462]
[1764756103252,0.19332528,900.4,899.58,0.81999462]
[1764756103853,0.19332528,900.4,899.57,0.81999462]
[1764756104152,0.19332528,900.4,899.58,0.81999462]
[1764756105148,0.19332528,900.4,899.59,0.81999462]
[1764756105347,0.19332528,900.4,899.61,0.81999462]
[1764756105552,0.19332528,900.4,899.72,0.81999462]
[1764756106853,0.19332528,900.4,899.71,0.81999462]
[1764756107255,0.19332528,900.4,899.72,0.81999462]
[1764756109262,0.19332528,900.4,899.73,0.81999462]
[1764756110051,0.19332528,900.4,899.74,0.81999462]
[1764756110252,0.19332528,900.4,899.75,0.81999462]
[1764756111052,0.19332528,900.4,899.76,0.81999462]
[1764756115458,0.19332528,900.4,899.77,0.81999462]
[1764756116057,0.19332528,900.4,899.89,0.81999462]
[1764756117256,0.19332528,900.4,899.88,0.81999462]
[1764756117963,0.19332528,900.4,899.87,0.81999462]
[1764756118263,0.19332528,900.4,899.88,0.81999462]
[1764756118461,0.19332528,900.4,899.92,0.81999462]
[1764756119163,0.19332528,900.4,899.91,0.81999462]
[1764756120763,0.19332528,900.4,899.9,0.81999462]
[1764756121363,0.19332528,900.4,899.89,0.81999462]
[1764756123668,1.10084687,900.81,899.89,0.81999462]
[1764756123963,0.19325979,900.43,899.97,0.81999462]
[1764756124167,1.10084687,900.9,899.97,0.81999462]
[1764756124466,5.12522421,901.04,899.96,0.81999462]
[1764756124467,0.19325066,900.43,899.96,0.81999462]
[1764756124668,1.10084687,900.85,899.91,0.81999462]
[1764756124968,1.10084687,900.78,899.83,0.81999462]
[1764756125266,1.10084687,900.78,899.19,3.52690392]
[1764756125267,1.10084687,900.77,899.82,0.81999462]
[1764756125667,1.10084687,900.68,899.73,0.81999462]
[1764756125865,0.19328716,900.54,899.73,0.81999462]
[1764756131470,0.19328716,900.54,899.72,0.81999462]
[1764756131673,0.19328716,900.54,899.71,0.81999462]
[1764756131876,0.19328716,900.54,899.72,0.81999462]
[1764756134673,0.19328716,900.54,899.69,0.81999462]
[1764756134879,0.19328716,900.54,899.59,0.81999462]
[1764756134880,1.10084687,900.53,899.59,0.81999462]
[1764756135278,1.10084687,900.53,899.58,0.81999462]
[1764756136077,1.10084687,900.51,899.57,0.81999462]
[1764756136278,1.10084687,900.51,899.56,0.81999462]
[1764756136978,1.10084687,900.51,899.57,0.81999462]
[1764756137278,1.10084687,900.52,899.56,0.81999462]
[1764756137974,0.19328716,900.54,899.56,0.81999462]
[1764756137975,1.10084687,900.51,899.56,0.81999462]
[1764756138178,1.10084687,900.51,899.55,0.81999462]
[1764756138379,1.10084687,900.45,899.49,0.81999462]
[1764756139276,1.10084687,900.45,899.48,0.81999462]
[1764756139680,1.10084687,900.46,899.5,0.81999462]
[1764756140274,1.10084687,900.46,899.49,0.81999462]
[1764756141275,1.10084687,900.47,899.49,0.81999462]
[1764756143281,1.10084687,900.47,899.48,0.81999462]
[1764756145277,1.10084687,900.48,899.47,0.81999462]
[1764756149181,1.10084687,900.49,899.47,0.81999462]
[1764756150384,1.10084687,900.5,899.47,0.81999462]
[1764756150680,0.19328716,900.54,899.55,0.81999462]
[1764756151685,0.19328716,900.54,899.6,0.81999462]
[1764756151883,0.19328716,900.54,899.36,3.51970058]
[1764756151884,0.19328716,900.54,899.62,0.81999462]
[1764756152986,0.19328716,900.54,899.61,0.81999462]
[1764756155990,0.19328716,900.54,899.62,0.81999462]
[1764756156788,0.19328716,900.54,899.61,0.81999462]
[1764756157488,0.19328716,900.54,899.6,0.81999462]
[1764756158994,0.19328716,900.54,899.56,0.81999462]
[1764756159193,0.19328716,900.54,899.24,1.6355575]
[1764756159194,0.19328716,900.54,899.55,0.81999462]
[1764756159887,0.19328716,900.54,899.54,0.81999462]
[1764756160391,0.19328716,900.54,899.51,0.81999462]
[1764756160392,1.10084687,900.53,899.51,0.81999462]
[1764756160789,1.10084687,900.43,899.42,0.81999462]
[1764756161287,1.10084687,900.44,899.41,0.81999462]
[1764756161589,1.10084687,900.43,899.4,0.81999462]
[1764756161790,1.10084687,900.41,899.38,0.81999462]
[1764756162293,1.10084687,900.33,899.29,0.81999462]
[1764756163290,1.10084687,900.34,899.28,0.81999462]
[1764756164292,1.10084687,900.35,899.27,0.81999462]
[1764756164894,1.10084687,900.31,899.23,0.81999462]
[1764756165296,0.19328716,900.54,899.22,0.81999462]
[1764756165297,1.10084687,900.32,899.22,0.81999462]
[1764756166393,1.10084687,900.33,899.21,0.81999462]
[1764756168293,1.10084687,900.34,899.2,0.81999462]
[1764756170493,1.10084687,900.35,899.19,0.81999462]
[1764756171296,1.10084687,900.36,899.19,0.81999462]
[1764756172200,1.10084687,900.36,899.18,0.81999462]
[1764756174296,1.10084687,900.36,898.92,0.19334569]
[1764756174297,1.10084687,900.37,899.17,0.81999462]
[1764756174898,1.10084687,900.41,899.21,0.81999462]
[1764756178201,1.10084687,900.4,899.21,0.81999462]
[1764756179201,1.10084687,900.4,899.22,0.81999462]
[1764756180797,1.10084687,900.39,899.21,0.81999462]
[1764756181001,1.10084687,900.39,899.06,3.50538578]
[1764756181002,1.10084687,900.35,899.17,0.81999462]
[1764756181199,1.10084687,900.35,899.16,0.81999462]
[1764756181399,1.10084687,900.34,899.17,0.81999462]
[1764756182102,1.10084687,900.34,899.16,0.81999462]
[1764756182299,1.10084687,900.33,899.16,0.81999462]
[1764756182701,1.10084687,900.3,899.13,0.81999462]
[1764756182905,1.10084687,900.28,899.12,0.81999462]
[1764756183200,1.10084687,900.29,899.11,0.81999462]
[1764756183405,1.10084687,900.29,899.13,0.81999462]
[1764756183602,1.29413403,900.54,899.37,0.81999462]
[1764756184301,1.10084687,900.52,899.39,0.81999462]
[1764756185306,1.10084687,900.51,899.4,0.81999462]
[1764756186206,0.19328716,900.54,899.41,0.81999462]
[1764756186207,1.10084687,900.52,899.41,0.81999462]
[1764756186402,1.10084687,900.51,899.41,0.81999462]
[1764756187408,1.10084687,900.51,899.42,0.81999462]
[1764756188506,1.10084687,900.5,899.42,0.81999462]
[1764756189208,1.10084687,900.5,899.43,0.81999462]
[1764756190310,1.10084687,900.49,899.44,0.81999462]
[1764756190809,1.10084687,900.51,899.45,0.81999462]
[1764756191008,1.10084687,900.51,899.29,1.09037167]
[1764756191009,1.10084687,900.53,899.47,0.81999462]
[1764756191306,0.19328716,900.54,899.56,0.81999462]
[1764756192307,0.19328716,900.54,899.57,0.81999462]
[1764756195008,0.19328716,900.54,899.58,0.81999462]
[1764756195212,0.19328716,900.54,899.65,0.81999462]
[1764756195607,0.19328716,900.54,899.66,0.81999462]
[1764756196413,0.19328716,900.54,899.65,0.81999462]
[1764756198114,0.19328716,900.54,899.64,0.81999462]
[1764756201415,0.19328716,900.54,899.63,0.81999462]
[1764756203414,0.19328716,900.54,899.62,0.81999462]
[1764756204218,0.19328716,900.54,899.63,0.81999462]
[1764756204420,0.19328716,900.54,899.66,0.81999462]
[1764756205021,0.19328716,900.54,899.61,0.81999462]
[1764756205221,0.19328716,900.54,899.65,0.81999462]
[1764756206021,0.19328716,900.54,899.63,0.81999462]
[1764756206217,0.19328716,900.54,899.62,0.81999462]
[1764756206725,0.19328716,900.54,899.63,0.81999462]
[1764756207021,0.19328716,900.54,899.62,0.81999462]
[1764756207520,0.19328716,900.54,899.63,0.81999462]
[1764756207724,0.19328716,900.54,899.62,0.81999462]
[1764756208221,0.19328716,900.54,899.61,0.81999462]
[1764756210121,0.19328716,900.54,899.6,0.81999462]
[1764756212426,0.19328716,900.54,899.59,0.81999462]
[1764756215027,0.19328716,900.54,899.62,0.81999462]
[1764756215327,0.19328716,900.54,899.51,0.81999462]
[1764756216023,0.19328716,900.54,899.5,0.81999462]
[1764756216227,0.19328716,900.54,899.47,0.81999462]
[1764756216627,0.19328716,900.54,899.44,0.81999462]
[1764756217027,0.19328716,900.54,899.42,0.81999462]
[1764756218430,0.19328716,900.54,899.37,0.81999462]
[1764756220530,0.19328716,900.54,899.36,0.81999462]
[1764756221629,0.19328716,900.54,899.37,0.81999462]
[1764756221830,0.19328716,900.54,899.36,0.81999462]
[1764756223129,0.19328716,900.54,899.37,0.81999462]
[1764756223935,0.19328716,900.54,899.35,0.81999462]
[1764756224130,1.10084687,900.49,899.29,0.81999462]
[1764756224930,1.10084687,900.39,899.2,0.81999462]
[1764756227031,1.10084687,900.37,899.18,0.81999462]
[1764756227233,1.10084687,900.37,899.02,1.09037167]
[1764756227234,1.10084687,900.3,899.1,0.81999462]
[1764756228135,1.10084687,900.3,899.09,0.81999462]
[1764756228633,0.19328716,900.54,899.07,0.81999462]
[1764756228634,1.10084687,900.28,899.07,0.81999462]
[1764756228933,1.10084687,900.26,899.05,0.81999462]
[1764756229231,1.10084687,900.25,899.03,0.81999462]
[1764756230332,1.10084687,900.17,898.94,0.81999462]
[1764756230832,1.10084687,900.14,898.9,0.81999462]
[1764756231035,0.19328716,900.54,898.86,0.81999462]
[1764756231036,1.10084687,900.09,898.86,0.81999462]
[1764756231332,1.10084687,900.06,898.8,0.81999462]
[1764756232235,1.10084687,900.08,898.78,0.81999462]
[1764756233236,1.10084687,900.09,898.76,0.81999462]
[1764756233936,1.10084687,900.06,898.73,0.81999462]
[1764756234137,1.10084687,900.08,898.71,0.81999462]
[1764756235236,1.10084687,900.09,898.7,0.81999462]
[1764756235432,1.10084687,900.1,898.7,0.81999462]
[1764756235933,1.10084687,900.07,898.67,0.81999462]
[1764756236131,1.10084687,900.09,898.66,0.81999462]
[1764756236335,1.10084687,900.1,898.66,0.81999462]
[1764756237135,1.10084687,900.11,898.65,0.81999462]
[1764756237339,1.10084687,900.12,898.65,0.81999462]
[1764756238238,1.10084687,900.13,898.64,0.81999462]
[1764756238439,1.10084687,900.14,898.64,0.81999462]
[1764756239135,1.10084687,900.15,898.63,0.81999462]
[1764756239338,1.10084687,900.16,898.63,0.81999462]
[1764756241340,1.10084687,900.17,898.62,0.81999462]
[1764756241640,1.10084687,900.17,898.29,0.19347199]
[1764756241641,1.10084687,900.19,898.64,0.81999462]
[1764756242542,1.10084687,900.2,898.63,0.81999462]
[1764756243236,1.10084687,900.21,898.62,0.81999462]
[1764756244138,1.10084687,900.22,898.62,0.81999462]
[1764756244342,1.10084687,900.23,898.61,0.81999462]
[1764756245341,1.10084687,900.24,898.61,0.81999462]
[1764756245942,1.10084687,900.25,898.62,0.81999462]
[1764756246338,1.10084687,900.27,898.61,0.81999462]
[1764756247341,1.10084687,900.28,898.6,0.81999462]
[1764756248344,1.10084687,900.29,898.6,0.81999462]
[1764756249141,1.10084687,900.3,898.6,0.81999462]
[1764756249343,1.10084687,900.3,898.5,3.74993278]
[1764756249344,1.10084687,900.3,898.59,0.81999462]
[1764756250343,1.10084687,900.31,898.59,0.81999462]
[1764756251145,1.10084687,900.32,898.59,0.81999462]
[1764756251346,1.10084687,900.32,898.58,0.81999462]
[1764756251946,1.10084687,900.3,898.56,0.81999462]
[1764756252847,1.10084687,900.26,898.52,0.81999462]
[1764756253345,1.10084687,900.26,898.5,4.5699274]
[1764756253841,1.10084687,900.12,898.5,3.74993278]
[1764756254043,1.10084687,900.1,898.5,3.74993278]
[1764756254243,1.10084687,900.11,898.5,3.74993278]
[1764756254946,1.10084687,900.07,898.5,3.74993278]
[1764756255243,1.10084687,900.08,898.5,3.74993278]
[1764756256347,1.10084687,900.09,898.5,3.74993278]
[1764756257445,1.10084687,900.1,898.5,3.74993278]
[1764756258248,1.10084687,900.11,898.5,3.74993278]
[1764756260048,1.10084687,900.11,898.27,0.81999462]
[1764756260449,1.10084687,900.12,898.27,0.81999462]
[1764756261150,1.10084687,900.11,898.27,0.81999462]
[1764756261351,1.10084687,900.12,898.27,0.81999462]
[1764756262153,1.10084687,900.11,898.27,0.81999462]
[1764756262448,1.10084687,900.12,898.27,0.81999462]
[1764756263153,1.10084687,900.11,898.27,0.81999462]
[1764756263350,1.10084687,900.12,898.27,0.81999462]
[1764756264153,1.10084687,900.11,898.27,0.81999462]
[1764756265050,1.10084687,900.15,898.31,0.81999462]
[1764756265251,1.10084687,900.14,898.31,0.81999462]
[1764756266151,1.10084687,900.13,898.32,0.81999462]
[1764756267354,1.10084687,900.12,898.32,0.81999462]
[1764756268259,1.10084687,900.11,898.33,0.81999462]